[Event "Early-Titled-Tuesday-Blitz-October-10-2023"]
[Site "Chess.com"]
[Date "2023.10.10"]
[Round "1"]
[White "whiteglovethief"]
[Black "Dewarfd"]
[Result "1-0"]
[WhiteElo "2546"]
[BlackElo "2066"]
[TimeControl "180+1"]
[EndTime "8:05:48 PDT"]
[Termination "whiteglovethief won by resignation"]

1. d4 {[%clk 0:02:58.2]} 1... Nf6 {[%clk 0:03:00]} 2. c4 {[%clk 0:02:58.3]} 2...
e6 {[%clk 0:02:59.5]} 3. Nf3 {[%clk 0:02:57.9]} 3... d5 {[%clk 0:03:00.3]} 4. g3
{[%clk 0:02:58.1]} 4... c5 {[%clk 0:03:00.6]} 5. cxd5 {[%clk 0:02:57.5]} 5...
Nxd5 {[%clk 0:03:01.1]} 6. Bg2 {[%clk 0:02:53.5]} 6... Nc6 {[%clk 0:02:58.8]} 7.
O-O {[%clk 0:02:52]} 7... Be7 {[%clk 0:02:57.4]} 8. a3 {[%clk 0:02:50]} 8... O-O
{[%clk 0:02:55.7]} 9. dxc5 {[%clk 0:02:49.7]} 9... Bxc5 {[%clk 0:02:56.1]} 10.
b4 {[%clk 0:02:50.1]} 10... Be7 {[%clk 0:02:54.5]} 11. Bb2 {[%clk 0:02:49.7]}
11... Bf6 {[%clk 0:02:54.9]} 12. Bxf6 {[%clk 0:02:49]} 12... Nxf6 {[%clk
0:02:54.2]} 13. Nc3 {[%clk 0:02:46.9]} 13... a6 {[%clk 0:02:46.2]} 14. Na4
{[%clk 0:02:43.5]} 14... Rb8 {[%clk 0:02:40.8]} 15. Qc2 {[%clk 0:02:38.9]} 15...
Bd7 {[%clk 0:02:36.1]} 16. Rfd1 {[%clk 0:02:37.1]} 16... Qe7 {[%clk 0:02:34.6]}
17. Nb6 {[%clk 0:02:35.3]} 17... Rfd8 {[%clk 0:02:32.1]} 18. Rac1 {[%clk
0:02:32.6]} 18... Be8 {[%clk 0:02:25.5]} 19. e3 {[%clk 0:02:29]} 19... Rxd1+
{[%clk 0:02:25.6]} 20. Rxd1 {[%clk 0:02:26.6]} 20... Rd8 {[%clk 0:02:25.7]} 21.
Ng5 {[%clk 0:02:15.6]} 21... Rxd1+ {[%clk 0:02:12.5]} 22. Qxd1 {[%clk
0:02:16.5]} 22... Qd8 {[%clk 0:02:08.1]} 23. Qxd8 {[%clk 0:02:09.8]} 23... Nxd8
{[%clk 0:02:08.6]} 24. Ne4 {[%clk 0:02:05]} 24... Nxe4 {[%clk 0:02:03]} 25. Bxe4
{[%clk 0:02:05.9]} 25... Bc6 {[%clk 0:01:59.8]} 26. Bxc6 {[%clk 0:02:06.2]}
26... Nxc6 {[%clk 0:02:00.7]} 27. Nd7 {[%clk 0:02:06.1]} 27... f6 {[%clk
0:01:44.8]} 28. Nc5 {[%clk 0:02:03.4]} 28... Nd8 {[%clk 0:01:45]} 29. Kf1 {[%clk
0:02:01.8]} 29... Kf8 {[%clk 0:01:45.9]} 30. Ke2 {[%clk 0:02:02.4]} 30... Ke7
{[%clk 0:01:45.2]} 31. Kd3 {[%clk 0:02:02.5]} 31... Kd6 {[%clk 0:01:44]} 32. Kc4
{[%clk 0:01:58.3]} 32... f5 {[%clk 0:01:30.7]} 33. f4 {[%clk 0:01:56.4]} 33...
e5 {[%clk 0:01:28.6]} 34. a4 {[%clk 0:01:49.9]} 34... h6 {[%clk 0:01:26.9]} 35.
a5 {[%clk 0:01:48.6]} 35... g5 {[%clk 0:01:24.5]} 36. fxg5 {[%clk 0:01:46.7]}
36... hxg5 {[%clk 0:01:23.5]} 37. h4 {[%clk 0:01:46.9]} 37... f4 {[%clk
0:01:14.3]} 38. exf4 {[%clk 0:01:46.1]} 38... exf4 {[%clk 0:01:12.7]} 39. hxg5
{[%clk 0:01:45.7]} 39... fxg3 {[%clk 0:01:12.5]} 40. Ne4+ {[%clk 0:01:46]} 40...
Ke5 {[%clk 0:01:09.3]} 41. Nxg3 {[%clk 0:01:46.9]} 41... Kf4 {[%clk 0:01:07.2]}
42. g6 {[%clk 0:01:47.1]} 42... Ne6 {[%clk 0:01:02.4]} 43. Nh5+ {[%clk
0:01:45.2]} 43... Kg5 {[%clk 0:00:59.2]} 44. g7 {[%clk 0:01:46.1]} 44... Nxg7
{[%clk 0:00:46.7]} 45. Nxg7 {[%clk 0:01:44.4]} 45... Kf6 {[%clk 0:00:47.6]} 46.
Kc5 {[%clk 0:01:44.5]} 46... Kxg7 {[%clk 0:00:46.3]} 47. Kb6 {[%clk 0:01:45.4]}
47... Kf7 {[%clk 0:00:45.6]} 48. Kxb7 {[%clk 0:01:46.3]} 48... Ke7 {[%clk
0:00:45.5]} 49. Kxa6 {[%clk 0:01:47.2]} 1-0

[Event "Early-Titled-Tuesday-Blitz-October-10-2023"]
[Site "Chess.com"]
[Date "2023.10.10"]
[Round "1"]
[White "Politov_Pavel"]
[Black "dcremisi"]
[Result "0-1"]
[WhiteElo "2045"]
[BlackElo "2540"]
[TimeControl "180+1"]
[EndTime "8:05:50 PDT"]
[Termination "dcremisi won by resignation"]

1. e4 {[%clk 0:02:57.7]} 1... e6 {[%clk 0:02:59.6]} 2. d4 {[%clk 0:02:56.5]}
2... d5 {[%clk 0:02:59.6]} 3. Nc3 {[%clk 0:02:55.4]} 3... Bb4 {[%clk 0:02:59.5]}
4. e5 {[%clk 0:02:54.7]} 4... c5 {[%clk 0:02:59.8]} 5. a3 {[%clk 0:02:53.7]}
5... Bxc3+ {[%clk 0:03:00]} 6. bxc3 {[%clk 0:02:54.6]} 6... Ne7 {[%clk
0:03:00.8]} 7. Qg4 {[%clk 0:02:51.8]} 7... Qc7 {[%clk 0:03:00.9]} 8. Qxg7 {[%clk
0:02:41.3]} 8... Rg8 {[%clk 0:03:00.3]} 9. Qxh7 {[%clk 0:02:41.3]} 9... cxd4
{[%clk 0:03:00.5]} 10. Ne2 {[%clk 0:02:40.8]} 10... Nbc6 {[%clk 0:03:00.5]} 11.
cxd4 {[%clk 0:02:38.6]} 11... Nxd4 {[%clk 0:02:55]} 12. Ra2 {[%clk 0:02:22.8]}
12... Nxe2 {[%clk 0:02:36]} 13. Bxe2 {[%clk 0:02:11.7]} 13... Qxe5 {[%clk
0:02:35.9]} 14. Kf1 {[%clk 0:02:02.7]} 14... Bd7 {[%clk 0:02:32.4]} 15. a4
{[%clk 0:01:59.6]} 15... Rc8 {[%clk 0:02:25.3]} 16. Ba3 {[%clk 0:01:40.8]} 16...
Rh8 {[%clk 0:02:12.5]} 17. Qd3 {[%clk 0:01:27.1]} 17... Rxh2 {[%clk 0:02:11]}
18. Rxh2 {[%clk 0:01:17.9]} 18... Qxh2 {[%clk 0:02:11]} 19. Bf3 {[%clk
0:01:01.3]} 19... Qh1+ {[%clk 0:02:08.9]} 20. Ke2 {[%clk 0:01:00.9]} 20... Qh4
{[%clk 0:01:45.8]} 21. g3 {[%clk 0:00:54.9]} 21... Qxa4 {[%clk 0:01:33.9]} 22.
Rb2 {[%clk 0:00:18.7]} 22... a6 {[%clk 0:01:29.2]} 23. Rxb7 {[%clk 0:00:10.7]}
23... Bb5 {[%clk 0:01:25.3]} 24. Rxe7+ {[%clk 0:00:09.4]} 24... Kd8 {[%clk
0:01:25.3]} 25. Rxf7 {[%clk 0:00:05.2]} 25... Qxc2+ {[%clk 0:01:22.5]} 26. Ke3
{[%clk 0:00:02.9]} 26... Qxd3+ {[%clk 0:01:22.1]} 27. Kf4 {[%clk 0:00:03.3]}
27... Qxa3 {[%clk 0:01:22.3]} 28. Rf6 {[%clk 0:00:02.8]} 0-1

[Event "Early-Titled-Tuesday-Blitz-October-10-2023"]
[Site "Chess.com"]
[Date "2023.10.10"]
[Round "1"]
[White "Tssunami"]
[Black "Witik"]
[Result "0-1"]
[WhiteElo "2398"]
[BlackElo "2707"]
[TimeControl "180+1"]
[EndTime "8:05:51 PDT"]
[Termination "Witik won by resignation"]

1. c4 {[%clk 0:02:59.7]} 1... e5 {[%clk 0:02:57.3]} 2. Nc3 {[%clk 0:03:00]} 2...
Bb4 {[%clk 0:02:56.2]} 3. g3 {[%clk 0:02:58.9]} 3... Bxc3 {[%clk 0:02:55.7]} 4.
dxc3 {[%clk 0:02:57]} 4... Ne7 {[%clk 0:02:55.3]} 5. e4 {[%clk 0:02:56.7]} 5...
d6 {[%clk 0:02:53.3]} 6. Bg2 {[%clk 0:02:56.2]} 6... Nd7 {[%clk 0:02:50]} 7. Nf3
{[%clk 0:02:56.3]} 7... b6 {[%clk 0:02:49.7]} 8. Nd2 {[%clk 0:02:55.4]} 8... Bb7
{[%clk 0:02:43.2]} 9. O-O {[%clk 0:02:52.1]} 9... O-O {[%clk 0:02:43.2]} 10. Qc2
{[%clk 0:02:45]} 10... f5 {[%clk 0:02:40.9]} 11. exf5 {[%clk 0:02:42.9]} 11...
Bxg2 {[%clk 0:02:40.8]} 12. Kxg2 {[%clk 0:02:43.8]} 12... Nxf5 {[%clk
0:02:41.4]} 13. Qe4 {[%clk 0:02:41.4]} 13... Qe8 {[%clk 0:02:32.2]} 14. Nf3
{[%clk 0:02:30.5]} 14... Qg6 {[%clk 0:02:27.6]} 15. Nh4 {[%clk 0:02:23.1]} 15...
Nxh4+ {[%clk 0:02:25.8]} 16. Qxh4 {[%clk 0:02:24]} 16... Nc5 {[%clk 0:02:22.3]}
17. Be3 {[%clk 0:02:19.4]} 17... Ne6 {[%clk 0:02:19.5]} 18. Kh1 {[%clk
0:02:12.3]} 18... Rf3 {[%clk 0:02:17.2]} 19. a4 {[%clk 0:02:07.5]} 19... Raf8
{[%clk 0:02:13.3]} 20. a5 {[%clk 0:02:06.7]} 20... h6 {[%clk 0:02:06.2]} 21.
axb6 {[%clk 0:02:05.2]} 21... axb6 {[%clk 0:02:07.1]} 22. Kg2 {[%clk 0:01:51.7]}
22... Kh7 {[%clk 0:01:51.3]} 23. Rae1 {[%clk 0:01:32]} 23... R8f7 {[%clk
0:01:31.4]} 24. Bc1 {[%clk 0:01:22.6]} 24... Kg8 {[%clk 0:01:25]} 25. Qe4 {[%clk
0:01:21.5]} 25... Qxe4 {[%clk 0:01:16.9]} 26. Rxe4 {[%clk 0:01:22.4]} 26... Nc5
{[%clk 0:01:17.4]} 27. Re3 {[%clk 0:01:18.6]} 27... R3f6 {[%clk 0:01:14.1]} 28.
b4 {[%clk 0:01:16.3]} 28... Ne6 {[%clk 0:01:13.4]} 29. Bd2 {[%clk 0:01:08.2]}
29... Rf8 {[%clk 0:01:12.5]} 30. h4 {[%clk 0:00:39.7]} 30... Ra8 {[%clk
0:01:12.1]} 31. Rf3 {[%clk 0:00:39.4]} 31... h5 {[%clk 0:01:02.6]} 32. Rf5
{[%clk 0:00:38.5]} 32... Rxf5 {[%clk 0:01:01.9]} 0-1

[Event "Early-Titled-Tuesday-Blitz-October-10-2023"]
[Site "Chess.com"]
[Date "2023.10.10"]
[Round "1"]
[White "LamaChampetre"]
[Black "JiaHaoxiang"]
[Result "0-1"]
[WhiteElo "2259"]
[BlackElo "2594"]
[TimeControl "180+1"]
[EndTime "8:05:56 PDT"]
[Termination "JiaHaoxiang won by checkmate"]

1. d4 {[%clk 0:02:39.6]} 1... Nf6 {[%clk 0:02:47.4]} 2. c4 {[%clk 0:02:38.6]}
2... g6 {[%clk 0:02:43.4]} 3. Nc3 {[%clk 0:02:37.6]} 3... Bg7 {[%clk 0:02:42.6]}
4. e4 {[%clk 0:02:37.5]} 4... d6 {[%clk 0:02:38.7]} 5. h3 {[%clk 0:02:38]} 5...
O-O {[%clk 0:02:37.3]} 6. Nf3 {[%clk 0:02:38.6]} 6... e5 {[%clk 0:02:33.2]} 7.
d5 {[%clk 0:02:36.2]} 7... Nh5 {[%clk 0:02:28.2]} 8. g3 {[%clk 0:02:31.1]} 8...
f5 {[%clk 0:02:12.5]} 9. exf5 {[%clk 0:02:32]} 9... gxf5 {[%clk 0:02:10.5]} 10.
Ng5 {[%clk 0:02:31.8]} 10... Qe8 {[%clk 0:02:05.9]} 11. Be2 {[%clk 0:02:30.4]}
11... Nf6 {[%clk 0:02:00.6]} 12. Be3 {[%clk 0:02:30.3]} 12... Na6 {[%clk
0:01:55.3]} 13. Qd2 {[%clk 0:02:26.6]} 13... f4 {[%clk 0:01:33.6]} 14. gxf4
{[%clk 0:02:22.7]} 14... exf4 {[%clk 0:01:34.5]} 15. Bxf4 {[%clk 0:02:16.2]}
15... Nc5 {[%clk 0:01:34.7]} 16. Be3 {[%clk 0:02:09.2]} 16... Bf5 {[%clk
0:01:27.7]} 17. Bxc5 {[%clk 0:01:52.6]} 17... dxc5 {[%clk 0:01:28.6]} 18. O-O-O
{[%clk 0:01:52.7]} 18... h6 {[%clk 0:01:23.9]} 19. Nf3 {[%clk 0:01:46.4]} 19...
Ne4 {[%clk 0:01:24.2]} 20. Nxe4 {[%clk 0:01:42.7]} 20... Qxe4 {[%clk 0:01:25.1]}
21. Qd3 {[%clk 0:01:16.1]} 21... Rae8 {[%clk 0:01:13.5]} 22. Rhe1 {[%clk
0:00:28.7]} 22... Qf4+ {[%clk 0:01:10.3]} 23. Qd2 {[%clk 0:00:27.5]} 23... Rxe2
{[%clk 0:00:55.3]} 24. Qxf4 {[%clk 0:00:16.1]} 24... Bxb2# {[%clk 0:00:54.7]}
0-1

[Event "Early-Titled-Tuesday-Blitz-October-10-2023"]
[Site "Chess.com"]
[Date "2023.10.10"]
[Round "1"]
[White "jens1102"]
[Black "inagreV"]
[Result "1-0"]
[WhiteElo "2598"]
[BlackElo "2275"]
[TimeControl "180+1"]
[EndTime "8:05:57 PDT"]
[Termination "jens1102 won by resignation"]

1. d4 {[%clk 0:03:00.9]} 1... Nf6 {[%clk 0:02:59.2]} 2. Bg5 {[%clk 0:02:59.3]}
2... d5 {[%clk 0:02:57.4]} 3. Nf3 {[%clk 0:02:58.8]} 3... Ne4 {[%clk 0:02:56.4]}
4. Bf4 {[%clk 0:02:58.6]} 4... c5 {[%clk 0:02:54.7]} 5. e3 {[%clk 0:02:58.7]}
5... Nc6 {[%clk 0:02:53.8]} 6. Bb5 {[%clk 0:02:55.3]} 6... Qb6 {[%clk
0:02:53.4]} 7. c4 {[%clk 0:02:50.1]} 7... cxd4 {[%clk 0:02:42.8]} 8. Nxd4 {[%clk
0:02:45.6]} 8... e5 {[%clk 0:02:21.6]} 9. Bxe5 {[%clk 0:02:29.2]} 9... Bb4+
{[%clk 0:02:21.2]} 10. Kf1 {[%clk 0:02:28.2]} 10... O-O {[%clk 0:02:20.1]} 11.
Bxc6 {[%clk 0:02:10.8]} 11... bxc6 {[%clk 0:02:21]} 12. f3 {[%clk 0:01:40.7]}
12... Ng5 {[%clk 0:02:13.3]} 13. h4 {[%clk 0:01:33.3]} 13... Ne6 {[%clk
0:02:06]} 14. a3 {[%clk 0:01:32.6]} 14... Be7 {[%clk 0:01:59.8]} 15. Nf5 {[%clk
0:01:29.4]} 15... Bf6 {[%clk 0:01:42.6]} 16. Bxf6 {[%clk 0:01:22.3]} 16... gxf6
{[%clk 0:01:43.5]} 17. Qc2 {[%clk 0:01:00.3]} 17... Ba6 {[%clk 0:01:33.1]} 18.
Nd2 {[%clk 0:00:54]} 18... d4 {[%clk 0:01:20.4]} 19. Kf2 {[%clk 0:00:40.8]}
19... dxe3+ {[%clk 0:01:12.4]} 20. Nxe3 {[%clk 0:00:41.7]} 20... Nd4 {[%clk
0:01:05]} 21. Qe4 {[%clk 0:00:41.1]} 21... Rfe8 {[%clk 0:01:03.1]} 22. Qg4+
{[%clk 0:00:41]} 22... Kh8 {[%clk 0:01:03.4]} 23. Qf4 {[%clk 0:00:39.2]} 23...
Rxe3 {[%clk 0:00:40]} 24. Qxe3 {[%clk 0:00:35.9]} 24... Qxb2 {[%clk 0:00:37.5]}
25. Rab1 {[%clk 0:00:34.8]} 1-0

[Event "Early-Titled-Tuesday-Blitz-October-10-2023"]
[Site "Chess.com"]
[Date "2023.10.10"]
[Round "1"]
[White "GAusal"]
[Black "NicolaiMaxime"]
[Result "0-1"]
[WhiteElo "2280"]
[BlackElo "2603"]
[TimeControl "180+1"]
[EndTime "8:06:07 PDT"]
[Termination "NicolaiMaxime won by resignation"]

1. d4 {[%clk 0:02:59.3]} 1... Nf6 {[%clk 0:02:59]} 2. Nf3 {[%clk 0:02:55.9]}
2... e6 {[%clk 0:02:58.7]} 3. Bf4 {[%clk 0:02:52.2]} 3... b6 {[%clk 0:02:57.7]}
4. e3 {[%clk 0:02:52.2]} 4... Bb7 {[%clk 0:02:57.7]} 5. Be2 {[%clk 0:02:49.4]}
5... c5 {[%clk 0:02:57.6]} 6. c3 {[%clk 0:02:48.8]} 6... Nc6 {[%clk 0:02:57.4]}
7. O-O {[%clk 0:02:48.5]} 7... Be7 {[%clk 0:02:56.1]} 8. Nbd2 {[%clk 0:02:48.5]}
8... d6 {[%clk 0:02:56.1]} 9. Re1 {[%clk 0:02:48.6]} 9... Qd7 {[%clk 0:02:55.9]}
10. Rc1 {[%clk 0:02:47.3]} 10... h6 {[%clk 0:02:55.9]} 11. h3 {[%clk 0:02:46.6]}
11... O-O {[%clk 0:02:55.7]} 12. Bh2 {[%clk 0:02:46.6]} 12... Rfe8 {[%clk
0:02:53.6]} 13. Nf1 {[%clk 0:02:44]} 13... Bf8 {[%clk 0:02:52.2]} 14. dxc5
{[%clk 0:02:42.7]} 14... bxc5 {[%clk 0:02:48.8]} 15. Qa4 {[%clk 0:02:41.3]}
15... Nd4 {[%clk 0:02:41.8]} 16. Qxd7 {[%clk 0:02:36.5]} 16... Nxe2+ {[%clk
0:02:41.8]} 17. Rxe2 {[%clk 0:02:35.6]} 17... Nxd7 {[%clk 0:02:42.7]} 18. Rd2
{[%clk 0:02:32.3]} 18... e5 {[%clk 0:02:36.2]} 19. c4 {[%clk 0:02:26.3]} 19...
Nf6 {[%clk 0:02:35.5]} 20. b3 {[%clk 0:02:24.6]} 20... a5 {[%clk 0:02:33.4]} 21.
Rcd1 {[%clk 0:02:21]} 21... a4 {[%clk 0:02:32.5]} 22. Rxd6 {[%clk 0:02:14.7]}
22... Bxd6 {[%clk 0:02:31.9]} 23. Rxd6 {[%clk 0:02:14.5]} 23... Bxf3 {[%clk
0:02:32.1]} 24. gxf3 {[%clk 0:02:13.7]} 24... axb3 {[%clk 0:01:54]} 25. axb3
{[%clk 0:02:12.6]} 25... Rab8 {[%clk 0:01:51.6]} 26. Rc6 {[%clk 0:02:11.1]}
26... Nd7 {[%clk 0:01:47]} 27. Ng3 {[%clk 0:02:03.5]} 27... Rxb3 {[%clk
0:01:40.9]} 28. Ne4 {[%clk 0:02:03]} 28... Rb4 {[%clk 0:01:25.1]} 29. Kg2 {[%clk
0:01:54.3]} 29... Re6 {[%clk 0:01:12.2]} 30. Nd6 {[%clk 0:01:45.5]} 30... Kh7
{[%clk 0:01:00.3]} 31. f4 {[%clk 0:01:35.6]} 31... Nb8 {[%clk 0:00:57.7]} 32. f5
{[%clk 0:01:29.6]} 32... Rf6 {[%clk 0:00:53.4]} 33. Rxc5 {[%clk 0:01:14.3]}
33... Rxd6 {[%clk 0:00:52.6]} 34. Bxe5 {[%clk 0:01:13.2]} 34... Rc6 {[%clk
0:00:51.7]} 35. Rd5 {[%clk 0:01:11.6]} 35... f6 {[%clk 0:00:48.8]} 36. Bd4
{[%clk 0:01:10.6]} 36... Rbxc4 {[%clk 0:00:47.6]} 37. Rd8 {[%clk 0:01:10.3]}
37... Rc8 {[%clk 0:00:47.7]} 38. Rd6 {[%clk 0:01:09.1]} 38... Nc6 {[%clk
0:00:47.6]} 39. Rd7 {[%clk 0:01:08.4]} 39... Nxd4 {[%clk 0:00:47.4]} 40. exd4
{[%clk 0:01:07.6]} 40... Re8 {[%clk 0:00:47.7]} 41. f3 {[%clk 0:01:05.8]} 41...
Re2+ {[%clk 0:00:46.9]} 42. Kg3 {[%clk 0:01:06]} 42... Rd2 {[%clk 0:00:45.8]}
0-1

[Event "Early-Titled-Tuesday-Blitz-October-10-2023"]
[Site "Chess.com"]
[Date "2023.10.10"]
[Round "1"]
[White "marvelavengers4"]
[Black "Aswathchess"]
[Result "0-1"]
[WhiteElo "2301"]
[BlackElo "2615"]
[TimeControl "180+1"]
[EndTime "8:06:14 PDT"]
[Termination "Aswathchess won by resignation"]

1. d4 {[%clk 0:03:00.9]} 1... Nf6 {[%clk 0:02:50.5]} 2. Nf3 {[%clk 0:02:57.4]}
2... e6 {[%clk 0:02:49.6]} 3. e3 {[%clk 0:02:57.1]} 3... b6 {[%clk 0:02:49.5]}
4. Bd3 {[%clk 0:02:57]} 4... Bb7 {[%clk 0:02:48.9]} 5. O-O {[%clk 0:02:57.7]}
5... Be7 {[%clk 0:02:49.1]} 6. b3 {[%clk 0:02:58]} 6... O-O {[%clk 0:02:49.7]}
7. Bb2 {[%clk 0:02:58.7]} 7... d6 {[%clk 0:02:50.2]} 8. Nbd2 {[%clk 0:02:58.9]}
8... Nbd7 {[%clk 0:02:50.8]} 9. Qe2 {[%clk 0:02:57.8]} 9... c5 {[%clk
0:02:51.3]} 10. a4 {[%clk 0:02:54.9]} 10... Qc7 {[%clk 0:02:51.4]} 11. a5 {[%clk
0:02:54.1]} 11... cxd4 {[%clk 0:02:44.1]} 12. exd4 {[%clk 0:02:52.6]} 12... Nd5
{[%clk 0:02:44.1]} 13. a6 {[%clk 0:02:42.4]} 13... Bc6 {[%clk 0:02:37.3]} 14. c4
{[%clk 0:02:32.1]} 14... Nf4 {[%clk 0:02:33.3]} 15. Qe3 {[%clk 0:02:32.4]} 15...
Nxd3 {[%clk 0:02:31.7]} 16. Qxd3 {[%clk 0:02:33.3]} 16... Nf6 {[%clk 0:02:23.1]}
17. Rfe1 {[%clk 0:02:31.3]} 17... Qd7 {[%clk 0:02:15.4]} 18. b4 {[%clk
0:02:29.7]} 18... b5 {[%clk 0:02:15.3]} 19. c5 {[%clk 0:02:08.6]} 19... Rfd8
{[%clk 0:02:13.6]} 20. Qe2 {[%clk 0:01:59.7]} 20... Nd5 {[%clk 0:02:11.9]} 21.
cxd6 {[%clk 0:01:37.7]} 21... Qxd6 {[%clk 0:02:02.1]} 22. Ne4 {[%clk 0:01:35.7]}
22... Qf4 {[%clk 0:01:50.1]} 23. Ne5 {[%clk 0:01:33.4]} 23... Be8 {[%clk
0:01:32.7]} 24. Bc1 {[%clk 0:01:32.2]} 24... Qh4 {[%clk 0:01:17.4]} 25. g3
{[%clk 0:01:31.5]} 25... Qh3 {[%clk 0:01:16.9]} 26. Bd2 {[%clk 0:01:16.7]} 26...
Nxb4 {[%clk 0:01:13.3]} 27. Be3 {[%clk 0:00:51.4]} 27... Nd5 {[%clk 0:01:09.9]}
28. Rec1 {[%clk 0:00:50.3]} 28... Rac8 {[%clk 0:01:02.7]} 29. Rc2 {[%clk
0:00:41.1]} 29... f6 {[%clk 0:01:00.6]} 30. Nd3 {[%clk 0:00:37.7]} 30... Bh5
{[%clk 0:00:57.6]} 31. f3 {[%clk 0:00:36.6]} 31... Bxf3 {[%clk 0:00:56.4]} 32.
Qxf3 {[%clk 0:00:33.5]} 32... Rxc2 {[%clk 0:00:56.3]} 33. Ndf2 {[%clk
0:00:33.2]} 33... Qf5 {[%clk 0:00:55.7]} 34. Qd1 {[%clk 0:00:29.7]} 34... Nxe3
{[%clk 0:00:55.2]} 0-1

[Event "Early-Titled-Tuesday-Blitz-October-10-2023"]
[Site "Chess.com"]
[Date "2023.10.10"]
[Round "1"]
[White "HrvojeZagreb"]
[Black "Dacean99"]
[Result "1-0"]
[WhiteElo "2307"]
[BlackElo "2589"]
[TimeControl "180+1"]
[EndTime "8:06:14 PDT"]
[Termination "HrvojeZagreb won by checkmate"]

1. d4 {[%clk 0:02:59.8]} 1... Nf6 {[%clk 0:02:58.2]} 2. Bf4 {[%clk 0:02:59.5]}
2... d5 {[%clk 0:02:58.3]} 3. e3 {[%clk 0:02:59.5]} 3... c5 {[%clk 0:02:58.7]}
4. Nc3 {[%clk 0:02:56.3]} 4... Nc6 {[%clk 0:02:58.9]} 5. Nb5 {[%clk 0:02:56.2]}
5... Bg4 {[%clk 0:02:48.9]} 6. f3 {[%clk 0:02:54.5]} 6... Bf5 {[%clk 0:02:48]}
7. Nc7+ {[%clk 0:02:49]} 7... Kd7 {[%clk 0:02:46.2]} 8. Nxa8 {[%clk 0:02:42.2]}
8... Qxa8 {[%clk 0:02:47.1]} 9. g4 {[%clk 0:02:26.9]} 9... Bg6 {[%clk
0:02:45.7]} 10. h4 {[%clk 0:02:04.7]} 10... h6 {[%clk 0:02:42.1]} 11. h5 {[%clk
0:01:56.3]} 11... Bh7 {[%clk 0:02:40.7]} 12. Bd3 {[%clk 0:01:50.5]} 12... Bxd3
{[%clk 0:02:39.6]} 13. Qxd3 {[%clk 0:01:50.4]} 13... e6 {[%clk 0:02:40.2]} 14.
O-O-O {[%clk 0:01:48.3]} 14... c4 {[%clk 0:02:40.1]} 15. Qe2 {[%clk 0:01:45.6]}
15... a5 {[%clk 0:02:32.8]} 16. e4 {[%clk 0:01:38.1]} 16... a4 {[%clk
0:02:32.4]} 17. a3 {[%clk 0:01:35.7]} 17... b5 {[%clk 0:02:27.2]} 18. c3 {[%clk
0:01:33.8]} 18... Qa5 {[%clk 0:02:26.3]} 19. g5 {[%clk 0:01:28.9]} 19... hxg5
{[%clk 0:02:23.1]} 20. Bxg5 {[%clk 0:01:29]} 20... Nxh5 {[%clk 0:02:23.3]} 21.
exd5 {[%clk 0:01:24.8]} 21... exd5 {[%clk 0:02:24.2]} 22. Qc2 {[%clk 0:00:57.9]}
22... g6 {[%clk 0:02:20]} 23. Ne2 {[%clk 0:00:48.8]} 23... Bd6 {[%clk
0:02:17.2]} 24. Bf4 {[%clk 0:00:41.8]} 24... Be7 {[%clk 0:01:54.9]} 25. Be5
{[%clk 0:00:39.5]} 25... Re8 {[%clk 0:01:51.8]} 26. Rxh5 {[%clk 0:00:36]} 26...
gxh5 {[%clk 0:01:51.7]} 27. Qf5+ {[%clk 0:00:36]} 27... Kd8 {[%clk 0:01:52.3]}
28. Qxf7 {[%clk 0:00:33.7]} 28... b4 {[%clk 0:01:50.9]} 29. cxb4 {[%clk
0:00:29.6]} 29... Qb5 {[%clk 0:01:50.2]} 30. Nf4 {[%clk 0:00:23.4]} 30... Bg5
{[%clk 0:01:46.4]} 31. Kc2 {[%clk 0:00:20.4]} 31... Rxe5 {[%clk 0:01:36.7]} 32.
dxe5 {[%clk 0:00:18.1]} 32... Bxf4 {[%clk 0:01:30.9]} 33. Rxd5+ {[%clk
0:00:16.8]} 33... Kc8 {[%clk 0:01:28.6]} 34. Rxb5 {[%clk 0:00:16.5]} 34... Nd4+
{[%clk 0:01:28.6]} 35. Kd1 {[%clk 0:00:15.8]} 35... Nxb5 {[%clk 0:01:27.8]} 36.
Qe8+ {[%clk 0:00:16.1]} 36... Kc7 {[%clk 0:01:27.6]} 37. Qxb5 {[%clk 0:00:17]}
37... c3 {[%clk 0:01:27.2]} 38. Qc4+ {[%clk 0:00:17.2]} 38... Kd7 {[%clk
0:01:27.2]} 39. Qxf4 {[%clk 0:00:17]} 39... cxb2 {[%clk 0:01:27.1]} 40. Kc2
{[%clk 0:00:17.3]} 40... b1=Q+ {[%clk 0:01:28]} 41. Kxb1 {[%clk 0:00:17.5]}
41... h4 {[%clk 0:01:28.1]} 42. Qxh4 {[%clk 0:00:17.4]} 42... Ke6 {[%clk
0:01:28]} 43. Qc4+ {[%clk 0:00:16.6]} 43... Kxe5 {[%clk 0:01:28.2]} 44. b5
{[%clk 0:00:17.5]} 44... Kd6 {[%clk 0:01:28.5]} 45. Qxa4 {[%clk 0:00:17.6]}
45... Kc5 {[%clk 0:01:28.5]} 46. Qb3 {[%clk 0:00:17.7]} 46... Kb6 {[%clk
0:01:28.8]} 47. a4 {[%clk 0:00:18]} 47... Ka5 {[%clk 0:01:29.7]} 48. f4 {[%clk
0:00:17.8]} 48... Kb6 {[%clk 0:01:30]} 49. a5+ {[%clk 0:00:18.4]} 49... Kxa5
{[%clk 0:01:29.7]} 50. b6 {[%clk 0:00:17.8]} 50... Ka6 {[%clk 0:01:30.3]} 51. b7
{[%clk 0:00:18.1]} 51... Ka5 {[%clk 0:01:30.9]} 52. b8=Q {[%clk 0:00:16.4]}
52... Ka6 {[%clk 0:01:31.8]} 53. Qa8# {[%clk 0:00:16.4]} 1-0